bitfinex-derivatives/quotes_ETHF0:USTF0_20250316
["timestamp","ask_amount","ask_price","bid_price","bid_amount"]
[1742129339191,0.0079658,1882.2,1882.1,3.20742]
[1742129340699,1.0705258,1882.2,1882.1,3.20742]
[1742129341997,0.0079658,1882.2,1882.1,3.20742]
[1742129342401,1.0705258,1882.2,1882.1,3.20742]
[1742129345408,2.4747658,1882.9,1882.8,5.2768]
[1742129345912,2.4747658,1882.9,1882.8,6.33902]
[1742129346109,2.4747658,1882.9,1882.8,5.2768]
[1742129347714,2.4747658,1882.9,1882.8,6.33902]
[1742129348213,2.4747658,1882.9,1882.8,5.2768]
[1742129348623,2.4747658,1882.9,1882.8,6.33902]
[1742129348914,0.0079658,1882.9,1882.8,6.33902]
[1742129349112,3.2078,1883.3,1882.8,6.33902]
[1742129349113,3.20743,1883.2,1883.1,1.06205]
[1742129349308,1.06205,1883.1,1883.0,4.26987]
[1742129349507,2.52125,1883.1,1883.0,5.58787]
[1742129349707,1.4592,1883.1,1883.0,5.58787]
[1742129350215,1.06193,1883.4,1883.3,1.06194]
[1742129350411,1.06193,1883.4,1883.2,3.2078]
[1742129350613,2.52113,1883.4,1883.3,2.0438]
[1742129350807,2.52113,1883.4,1883.3,1.318]
[1742129354417,1.06194,1883.3,1883.2,3.2078]
[1742129354613,2.45394,1883.3,1883.2,3.2078]
[1742129355121,2.45394,1883.3,1883.2,4.6542]
[1742129355511,2.45394,1883.3,1883.2,5.7162]
[1742129355711,2.45394,1883.3,1883.2,4.6542]
[1742129355910,2.45394,1883.3,1883.2,5.7162]
[1742129356111,1.392,1883.3,1883.2,5.7162]
[1742129356313,0.7389658,1883.5,1883.3,1.06191]
[1742129356613,1.3547,1883.4,1883.3,1.06191]
[1742129356920,2.0936658,1883.5,1883.4,1.73648]
[1742129357113,1.06194,1883.3,1883.2,3.2078]
[1742129357510,1.06194,1883.3,1883.2,4.2698]
[1742129357816,1.06194,1883.3,1883.2,3.2078]
[1742129361822,1.06194,1883.3,1883.2,4.2698]
[1742129362121,1.06194,1883.3,1883.2,3.2078]
[1742129362419,1.06194,1883.3,1883.2,4.2698]
[1742129362919,1.06194,1883.3,1883.2,3.2078]
[1742129364124,1.06194,1883.3,1883.2,4.2698]
[1742129364617,1.3547,1883.4,1883.3,1.06194]
[1742129364815,1.3547,1883.4,1883.3,1.73514]
[1742129365526,0.7389658,1883.5,1883.4,1.06188]
[1742129365527,1.0698358,1883.5,1883.4,1.06188]
[1742129365719,1.0698358,1883.5,1883.4,3.9364]
[1742129366022,2.5109358,1883.5,1883.4,3.2078]
[1742129366719,1.06194,1883.3,1883.2,3.2078]
[1742129367219,1.06205,1883.1,1883.0,4.26986]
[1742129368223,1.73435,1883.1,1883.0,4.26986]
[1742129368417,1.78599,1883.3,1883.2,1.062]
[1742129368618,3.14959,1883.3,1883.2,1.062]
[1742129368824,1.06204,1883.2,1883.1,1.06202]
[1742129369026,2.42564,1883.2,1883.1,1.06202]
[1742129370419,1.06197,1883.3,1883.2,1.062]
[1742129371328,1.06197,1883.3,1883.2,2.438]
[1742129371516,2.44347,1883.3,1883.2,2.438]
[1742129371718,2.44344,1883.3,1883.2,2.438]
[1742129372025,1.062,1883.2,1883.1,2.41971]
[1742129372220,1.062,1883.2,1883.1,1.3577]
[1742129372221,3.1655,1883.2,1883.1,1.3577]
[1742129374528,3.1655,1883.2,1883.1,2.41975]
[1742129374729,2.4435,1883.2,1883.1,2.41975]
[1742129376021,2.40718,1883.3,1883.2,1.062]
[1742129376528,2.40718,1883.3,1883.2,1.752]
[1742129376728,1.06198,1883.3,1883.2,1.752]
[1742129377830,1.06192,1883.4,1883.3,1.06194]
[1742129378132,1.06192,1883.4,1883.3,1.3911]
[1742129378633,2.47562,1883.4,1883.3,2.45304]
[1742129379528,2.47562,1883.4,1883.3,1.3911]
[1742129379829,2.47562,1883.4,1883.3,2.45304]
[1742129380623,1.06192,1883.4,1883.3,2.45304]
[1742129380823,2.4336358,1883.5,1883.4,1.06188]
[1742129381026,2.4336358,1883.5,1883.4,3.2078]
[1742129381428,2.4336358,1883.5,1883.4,4.6396]
[1742129381937,2.4336358,1883.5,1883.4,1.4318]
[1742129382441,1.06188,1883.4,1883.3,1.4548]
[1742129382627,3.15218,1883.4,1883.3,1.4548]
[1742129384140,1.06188,1883.4,1883.3,2.51674]
[1742129384437,2.46138,1883.4,1883.3,2.51674]
[1742129385236,1.06188,1883.4,1883.3,2.51674]
[1742129387537,2.4540458,1883.5,1883.4,1.06188]
[1742129387734,2.4540458,1883.5,1883.4,5.72108]
[1742129389742,1.3921658,1883.5,1883.4,5.72108]
[1742129390036,1.0697958,1883.5,1883.4,5.72108]
[1742129390237,0.0079658,1883.5,1883.4,5.72108]
[1742129391633,1.06162,1883.9,1883.8,1.06166]
[1742129392342,2.50142,1883.9,1883.8,2.41226]
[1742129393842,2.50142,1883.9,1883.8,1.3506]
[1742129394040,1.06166,1883.8,1883.7,3.2157658]
[1742129394228,2.50146,1883.8,1883.7,3.2157658]
[1742129395142,2.50146,1883.8,1883.7,4.6195658]
[1742129398247,2.50146,1883.8,1883.7,3.2157658]
[1742129400238,2.50146,1883.8,1883.7,5.7038758]
[1742129400443,1.06165,1883.9,1883.8,1.06166]
[1742129400646,2.49975,1883.9,1883.8,2.0589]
[1742129401042,2.49975,1883.9,1883.8,1.3844]
[1742129402742,1.06166,1883.8,1883.7,3.2157658]
[1742129402945,2.49976,1883.8,1883.7,0.0079658]
[1742129403645,2.49976,1883.8,1883.2,3.2078]
[1742129403646,10.28734,1883.8,1883.2,3.2078]
[1742129403842,1.06194,1883.3,1883.2,4.5917]
[1742129404039,1.06194,1883.3,1883.2,3.2078]
[1742129404238,1.06194,1883.3,1883.2,4.2698]
[1742129404641,2.48414,1883.3,1883.2,4.2698]
[1742129405150,2.48414,1883.3,1883.2,3.2078]
[1742129405742,2.48414,1883.3,1883.2,4.2698]
[1742129405949,2.48414,1883.3,1883.2,3.2078]
[1742129408453,1.062,1883.2,1883.1,0.0079658]
[1742129408646,2.4358,1883.2,1883.1,0.0079658]
[1742129409353,1.06217,1882.9,1882.8,3.8878]
[1742129409542,1.06228,1882.7,1882.6,3.2078]
[1742129409850,1.06239,1882.5,1882.4,5.69661]
[1742129412956,2.4169358,1882.6,1882.5,1.06239]
[1742129413458,0.0079658,1882.6,1882.5,1.06239]
[1742129413661,1.0702958,1882.6,1882.5,1.06239]
[1742129414348,0.0079658,1882.6,1882.5,1.06239]
[1742129415251,0.0079658,1882.6,1882.4,5.69662]
[1742129415450,1.06239,1882.5,1882.4,5.69662]
[1742129415653,1.06239,1882.5,1882.4,3.9329]
[1742129415849,2.41939,1882.5,1882.4,3.9329]
[1742129416152,3.09119,1882.5,1882.4,3.9329]
[1742129416353,3.09119,1882.5,1882.4,3.2078]
[1742129416549,3.09119,1882.5,1882.3,0.0079658]
[1742129416749,2.41945,1882.4,1882.3,0.0079658]
[1742129417952,1.06262,1882.1,1882.0,3.2078]
[1742129418748,2.41962,1882.1,1882.0,3.2078]
[1742129419359,2.46449,1882.2,1882.1,1.06262]
[1742129419658,1.06256,1882.2,1882.1,1.06262]
[1742129420046,1.06262,1882.1,1882.0,3.2078]
[1742129420250,2.40166,1882.1,1881.9,1.78061]
[1742129420458,1.06267,1882.0,1881.9,0.7179]
[1742129420659,1.06273,1881.9,1881.8,3.2078]
[1742129421452,1.06273,1881.9,1881.8,4.27059]
[1742129422159,2.40383,1881.9,1881.8,5.69659]
[1742129422456,2.40383,1881.9,1881.8,4.6338]
[1742129425053,2.40383,1881.9,1881.8,3.2078]
[1742129427560,2.40383,1881.9,1881.8,4.6032]
[1742129428454,7.69299,1881.9,1881.5,0.696]
[1742129428658,1.0629,1881.6,1881.5,1.3278]
[1742129429559,3.1157,1881.6,1881.5,1.3278]
[1742129432066,1.06301,1881.4,1881.3,3.2078]
[1742129432965,0.0079658,1881.5,1881.3,4.5613]
[1742129433264,0.0079658,1881.5,1881.4,2.41651]
[1742129434158,1.3713,1881.9,1881.4,3.8535]
[1742129434465,2.43403,1881.9,1881.8,3.2078]
[1742129435057,1.06284,1881.7,1881.6,4.6417]
[1742129437673,1.73494,1881.7,1881.6,4.6417]
[1742129438168,3.06214,1881.7,1881.6,4.6417]
[1742129438472,1.06284,1881.7,1881.6,4.6417]
[1742129440474,1.06284,1881.7,1881.6,5.7046]
[1742129441072,1.06284,1881.7,1881.6,4.6417]
[1742129441267,0.0079658,1881.8,1881.7,1.06284]
[1742129441474,0.0079658,1881.8,1881.7,3.10814]
[1742129442973,1.0707558,1881.8,1881.7,3.10814]
[1742129443166,0.0079658,1881.8,1881.7,3.10814]
[1742129446173,1.0707558,1881.8,1881.7,3.10814]
[1742129446373,0.0079658,1881.8,1881.7,3.10814]
[1742129448177,1.0707558,1881.8,1881.7,3.10814]
[1742129448374,1.0707558,1881.8,1881.7,2.0453]
[1742129449075,1.0707558,1881.8,1881.7,1.384]
[1742129449274,1.06284,1881.7,1881.6,3.2078]
[1742129449470,2.46754,1881.7,1881.6,4.6229]
[1742129450072,2.46754,1881.7,1881.6,3.2078]
[1742129450376,2.46754,1881.7,1881.5,1.4230658]
[1742129450377,1.0629,1881.6,1881.5,1.4230658]
[1742129450575,2.4676,1881.6,1881.5,1.4230658]
[1742129453079,1.0629,1881.6,1881.5,2.4860258]
[1742129453277,1.0629,1881.6,1881.5,2.0888658]
[1742129453783,1.0629,1881.6,1881.5,1.4230658]
[1742129454374,1.0629,1881.6,1881.5,2.4860258]
[1742129454682,1.0629,1881.6,1881.5,1.4230658]
[1742129455383,1.7555,1881.6,1881.5,1.4230658]
[1742129455879,1.4404,1881.7,1881.5,2.4859958]
[1742129456173,1.0629,1881.6,1881.5,1.4230658]
[1742129456374,1.0629,1881.6,1881.5,0.0079658]
[1742129456776,1.0629,1881.6,1881.5,1.0709258]
[1742129456983,1.0629,1881.6,1881.5,0.0079658]
[1742129463673,4.7539,1881.6,1881.5,0.0079658]
[1742129463877,1.06307,1881.3,1881.2,3.2078]
[1742129464689,1.06307,1881.3,1881.2,4.27092]
[1742129464881,1.06307,1881.3,1881.2,3.2078]
[1742129467089,1.06318,1881.1,1881.0,0.01992]
[1742129467792,2.46578,1881.1,1881.0,0.01992]
[1742129468589,2.65767,1881.4,1881.2,1.06309]
[1742129468783,1.06301,1881.4,1881.3,0.6728]
[1742129468994,1.06301,1881.4,1881.3,1.3598]
[1742129469184,1.06301,1881.4,1881.3,2.42287]
[1742129469384,1.06301,1881.4,1881.3,1.3598]
[1742129469786,1.06298,1881.5,1881.4,1.06301]
[1742129470093,1.06298,1881.5,1881.4,4.27081]
[1742129470292,1.06298,1881.5,1881.4,3.2078]
[1742129470486,1.06298,1881.5,1881.4,4.27081]
[1742129470890,1.06298,1881.5,1881.4,5.66131]
[1742129471983,1.06298,1881.5,1881.4,3.2078]
[1742129472189,1.06298,1881.5,1881.4,4.27081]
[1742129473090,1.06298,1881.5,1881.4,6.37061]
[1742129473397,0.0079658,1881.8,1881.4,5.3076]
[1742129473592,2.44024,1881.7,1881.6,3.2078]
[1742129473797,2.44024,1881.7,1881.6,5.6781]
[1742129474699,1.0707858,1881.8,1881.7,1.06284]
[1742129474892,2.4481558,1881.8,1881.7,2.1381]
[1742129475791,2.4481558,1881.8,1881.7,3.20094]
[1742129475998,2.4481558,1881.8,1881.7,2.1381]
[1742129476895,2.4481558,1881.8,1881.7,3.20094]
[1742129477694,2.4481558,1881.8,1881.7,1.4074]
[1742129480505,1.06284,1881.7,1881.6,4.6041]
[1742129480696,3.07864,1881.7,1881.6,4.6041]
[1742129481708,3.07864,1881.7,1881.6,5.667]
[1742129484107,3.07864,1881.7,1881.6,4.6041]
[1742129487216,3.07864,1881.7,1881.6,3.2078]
[1742129487417,1.06301,1881.4,1881.3,4.5865]
[1742129487621,1.06301,1881.4,1881.3,5.64957]
[1742129488520,1.06301,1881.4,1881.3,4.5865]
[1742129488720,1.06301,1881.4,1881.3,5.64957]
[1742129489120,1.06301,1881.4,1881.3,4.5865]
[1742129489519,1.06301,1881.4,1881.3,5.64957]
[1742129489721,1.06301,1881.4,1881.3,4.5865]
[1742129490321,1.74181,1881.4,1881.3,4.5865]
[1742129491927,1.74181,1881.4,1881.3,3.2078]
[1742129492127,1.06312,1881.2,1881.1,4.6027]
[1742129492627,2.52062,1881.2,1881.1,5.66588]
[1742129495422,2.52062,1881.2,1881.1,4.6027]
[1742129495916,2.52062,1881.2,1881.1,2.1104]
[1742129496222,1.06341,1880.7,1880.6,1.4565]
[1742129496620,1.06341,1880.7,1880.6,2.1664]
[1742129497427,2.50591,1880.7,1880.6,2.1664]
[1742129498629,2.50591,1880.7,1880.6,1.4565]
[1742129498827,1.06346,1880.6,1880.5,0.02156]
[1742129499023,2.50416,1880.6,1880.5,0.02156]
[1742129499226,3.18506,1880.6,1880.5,0.02156]
[1742129503228,5.68506,1880.6,1880.5,0.02156]
[1742129503727,3.18506,1880.6,1880.5,0.02156]
[1742129504329,6.87206,1880.6,1880.5,0.02156]
[1742129505326,6.19116,1880.6,1880.5,0.02156]
[1742129505534,6.19116,1880.6,1880.5,0.70166]
[1742129508436,6.19116,1880.6,1880.5,0.02156]
[1742129508834,6.19116,1880.6,1880.5,1.45316]
[1742129510937,1.06346,1880.6,1880.5,1.45316]
[1742129511535,1.0713158,1880.8,1880.7,1.06341]
[1742129511837,0.0079658,1880.8,1880.7,4.27121]
[1742129512037,1.06315,1881.2,1881.1,1.06318]
[1742129512240,1.06315,1881.2,1880.8,2.65837]
[1742129512241,9.55208,1881.6,1881.2,1.06308]
[1742129512544,1.06306,1881.4,1881.3,1.75657]
[1742129512743,1.06306,1881.4,1881.3,3.16127]
[1742129512943,3.687,1881.7,1881.3,2.0982]
[1742129513139,7.26418,1881.8,1881.4,4.6125]
[1742129513337,0.0079658,1881.5,1881.4,4.6125]
[1742129513846,0.0079658,1881.5,1881.4,5.6755]
[1742129514142,1.0709258,1881.5,1881.4,4.6125]
[1742129515039,0.0079658,1881.5,1881.4,5.67551]
[1742129515239,1.06267,1882.0,1881.4,7.8051]
[1742129515542,1.06274,1881.9,1881.8,3.2078]
[1742129515730,1.06274,1881.9,1881.8,6.40299]
[1742129515931,1.06274,1881.9,1881.8,5.3402]
[1742129517243,2.45604,1881.9,1881.8,5.3402]
[1742129517638,3.2078,1882.3,1881.8,11.5262]
[1742129517839,5.826,1883.4,1881.8,11.5262]
[1742129517840,3.2078,1882.9,1882.2,3.2078]
[1742129518138,3.2078,1882.9,1881.8,4.3686]
[1742129518139,1.3933,1882.8,1882.4,3.2078]
[1742129518536,2.062,1882.8,1882.4,4.27024]
[1742129518738,1.06237,1882.6,1882.4,4.27023]
[1742129518937,1.06239,1882.5,1882.4,3.2157658]
[1742129519539,2.0699658,1882.8,1882.4,3.2157658]
[1742129519540,1.06237,1882.6,1882.4,4.2782158]
[1742129519743,1.434,1882.5,1882.4,4.2782158]
[1742129520844,1.434,1882.5,1882.4,2.4795158]
[1742129521044,1.434,1882.5,1882.4,5.6873158]
[1742129521246,1.06231,1882.7,1882.5,1.06239]
[1742129521539,2.49631,1882.7,1882.6,1.4091]
[1742129524239,1.06239,1882.5,1882.4,0.0079658]
[1742129524445,1.06239,1882.5,1882.4,1.4079658]
[1742129526337,1.06239,1882.5,1882.4,0.0079658]
[1742129526544,1.06262,1882.1,1882.0,3.2078]
[1742129527049,1.06262,1882.1,1882.0,3.2078]
[1742129527446,5.8644,1882.1,1881.6,3.2078]
[1742129527646,1.06284,1881.7,1881.6,4.5987]
[1742129528347,1.06284,1881.7,1881.6,1.3909]
[1742129528553,1.0629,1881.6,1881.5,0.0079658]
[1742129528857,2.4529,1881.6,1881.5,0.0079658]
[1742129529038,2.4529,1881.6,1881.5,1.3499658]
[1742129530039,4.4025,1881.7,1881.5,1.3499658]
[1742129530249,4.4025,1881.7,1881.6,3.2078]
[1742129530250,3.17338,1881.7,1881.6,3.2078]
[1742129530451,3.17338,1881.7,1881.6,1.0629]
[1742129530751,1.06288,1881.7,1881.5,2.4128858]
[1742129531054,1.0629,1881.6,1881.5,2.4128858]
[1742129531354,1.0629,1881.6,1881.5,5.6206858]
[1742129531953,1.0629,1881.6,1881.5,5.6206958]
[1742129532852,1.39,1881.8,1881.7,1.06284]
[1742129533949,1.06288,1881.7,1881.6,1.06286]
[1742129534453,1.39,1881.8,1881.5,4.5577658]
[1742129534847,1.06287,1881.7,1881.6,1.06288]
[1742129535756,2.45282,1881.8,1881.7,1.06284]
[1742129535949,1.06285,1881.7,1881.5,4.5577658]
[1742129536153,1.06285,1881.7,1881.6,1.06287]
[1742129536349,1.0629,1881.6,1881.5,1.3499658]
[1742129536648,2.5124,1881.6,1881.5,4.5577658]
[1742129539154,1.3977658,1882.0,1881.6,1.0629]
[1742129539352,1.06284,1881.7,1881.6,1.0629]
[1742129539544,1.3977658,1882.0,1881.7,1.06284]
[1742129539857,1.06277,1881.9,1881.8,1.06277]
[1742129541659,1.06279,1881.8,1881.7,1.78732]
[1742129544359,2.39537,1881.9,1881.8,1.06279]
[1742129545657,1.06279,1881.8,1881.7,1.7873]
[1742129545965,2.47479,1881.8,1881.7,0.7245]
[1742129546258,2.47479,1881.8,1881.7,1.78734]
[1742129546759,2.47479,1881.8,1881.7,0.7245]
[1742129547063,2.47479,1881.8,1881.7,1.78734]
[1742129547554,2.47479,1881.8,1881.7,0.7245]
[1742129547772,1.06284,1881.7,1881.6,1.06287]
[1742129548064,2.38444,1881.7,1881.6,1.06287]
[1742129549657,1.0629,1881.6,1881.5,0.0079658]
[1742129549856,2.4647,1881.6,1881.5,1.0709258]
[1742129550853,2.4647,1881.6,1881.5,2.5019258]
[1742129551059,2.4647,1881.6,1881.5,1.4389658]
[1742129552663,2.4647,1881.6,1881.5,2.5019258]
[1742129553363,1.06289,1881.7,1881.6,1.06287]
[1742129553560,1.06289,1881.7,1881.6,4.27067]
[1742129556164,1.06289,1881.7,1881.6,3.2078]
[1742129556367,1.06289,1881.7,1881.6,4.2707]
[1742129556664,1.06289,1881.7,1881.6,4.5493]
[1742129557061,1.06289,1881.7,1881.6,5.6122]
[1742129557369,1.06289,1881.7,1881.6,4.5493]
[1742129557566,1.75499,1881.7,1881.6,4.5493]
[1742129558066,1.75499,1881.7,1881.6,3.2078]
[1742129558268,1.75499,1881.7,1881.6,4.5493]
[1742129558862,1.75499,1881.7,1881.6,5.6122]
[1742129559166,1.75499,1881.7,1881.6,4.5493]
[1742129559766,1.75499,1881.7,1881.6,5.6122]
[1742129560264,1.06289,1881.7,1881.6,5.6122]
[1742129561369,1.06289,1881.7,1881.6,4.5493]
[1742129561670,1.06289,1881.7,1881.6,3.2078]
[1742129561968,1.0629,1881.6,1881.5,1.3958658]
[1742129562166,2.4389,1881.6,1881.5,0.0079658]
[1742129562968,2.4389,1881.6,1881.0,0.6739]
[1742129562969,1.06312,1881.2,1881.1,4.5957]
[1742129563164,1.06312,1881.2,1881.1,5.65888]
[1742129565675,1.06312,1881.2,1881.1,4.5957]
[1742129565875,1.78232,1881.2,1881.1,4.5957]
[1742129566274,2.48292,1881.2,1881.1,3.2078]
[1742129567374,3.93192,1881.2,1881.1,3.2078]
[1742129567872,1.06318,1881.1,1881.0,0.0079658]
[1742129568072,2.38388,1881.1,1881.0,0.0079658]
[1742129575478,2.38388,1881.1,1881.0,1.0712058]
[1742129575683,1.4198,1881.2,1881.1,1.06318]
[1742129575684,1.06317,1881.2,1881.1,1.06318]
[1742129575877,1.06317,1881.2,1881.1,1.4189]
[1742129576073,1.06317,1881.2,1881.1,3.82468]
[1742129577374,0.681,1881.4,1881.1,2.7615]
[1742129577679,1.06305,1881.4,1881.3,1.06302]
[1742129579575,1.06298,1881.5,1881.4,1.06301]
[1742129580381,1.06288,1881.7,1881.4,3.9191]
[1742129580581,1.06288,1881.7,1881.6,4.2707]
[1742129581287,1.06288,1881.7,1881.6,5.6727]
[1742129582976,1.06288,1881.7,1881.6,4.6098]
[1742129584088,1.06288,1881.7,1881.6,5.6727]
[1742129587792,1.06288,1881.7,1881.6,4.6098]
[1742129588093,1.06288,1881.7,1881.6,1.402]
[1742129588493,1.73498,1881.7,1881.6,1.402]
[1742129589495,1.06296,1881.5,1881.4,4.98211]
[1742129590096,1.72186,1881.5,1881.4,4.98211]
[1742129590898,1.72186,1881.5,1881.4,6.35031]
[1742129592491,1.06288,1881.7,1881.6,1.06285]
[1742129594202,1.06288,1881.7,1881.6,4.27065]
[1742129596399,1.06288,1881.7,1881.6,3.2078]
[1742129596699,1.06288,1881.7,1881.6,1.0629]
[1742129598290,1.06288,1881.7,1881.6,4.2707]
[1742129601010,2.39464,1881.8,1881.7,1.06284]
[1742129601309,2.39464,1881.8,1881.7,3.18124]
[1742129601511,2.39464,1881.8,1881.7,2.1184]
[1742129601704,2.39464,1881.8,1881.7,3.18124]
[1742129602604,2.39464,1881.8,1881.7,2.1184]
[1742129603007,2.39464,1881.8,1881.7,1.4358]
[1742129603206,1.06284,1881.7,1881.6,3.2078]
[1742129603521,1.0629,1881.6,1881.5,2.42736]
[1742129603814,1.7919,1881.6,1881.5,2.42736]
[1742129604014,1.7919,1881.6,1881.5,1.3644]
[1742129604618,1.7919,1881.6,1881.5,2.42736]
[1742129606613,1.0629,1881.6,1881.5,2.42736]
[1742129606813,1.3414,1881.7,1881.6,1.0629]
[1742129606814,1.06287,1881.7,1881.6,1.0629]
[1742129607116,1.06287,1881.7,1881.6,5.6611]
[1742129608023,2.45717,1881.7,1881.6,5.6611]
[1742129609827,1.3943,1881.7,1881.6,5.6611]
[1742129610019,1.06281,1881.8,1881.7,1.06284]
[1742129610328,2.45711,1881.8,1881.7,3.21364]
[1742129612725,2.45711,1881.8,1881.7,1.448]
[1742129613022,2.45711,1881.8,1881.7,2.51084]
[1742129613726,1.06284,1881.7,1881.6,1.06289]
[1742129613925,3.19794,1881.7,1881.6,2.38439]
[1742129614126,3.19794,1881.7,1881.6,5.59219]
[1742129614725,2.48034,1881.7,1881.6,5.59219]
[1742129615816,1.4175,1881.7,1881.6,5.59219]
[1742129616021,1.4026,1881.9,1881.8,1.06279]
[1742129616230,2.1237,1881.9,1881.8,4.27059]
[1742129616721,0.7062,1881.9,1881.8,6.38679]
[1742129616915,0.0079658,1882.0,1881.9,1.06273]
[1742129617122,0.0079658,1882.0,1881.9,2.47173]
[1742129621929,0.0079658,1882.0,1881.9,2.86878506]
[1742129623631,0.0079658,1882.0,1881.9,6.54078506]
[1742129628839,0.0079658,1882.0,1881.9,6.53978506]
[1742129629441,1.3327658,1882.0,1881.9,6.53978506]
[1742129632743,0.0079658,1882.0,1881.9,6.53978506]
[1742129634040,1.4384,1882.3,1882.2,1.06256]
[1742129634242,0.6773,1882.5,1882.4,1.06245]
[1742129634544,0.6773,1882.5,1882.4,4.27025]
[1742129634745,2.1157,1882.5,1882.4,4.27025]
[1742129635247,3.17809,1882.5,1882.4,5.62915]
[1742129635747,2.1157,1882.5,1882.4,5.62915]
[1742129636044,3.17809,1882.5,1882.4,5.62915]
[1742129636638,2.1157,1882.5,1882.4,5.62915]
[1742129641448,3.17809,1882.5,1882.4,3.2078]
[1742129641750,1.06245,1882.4,1882.3,1.0704558]
[1742129642048,2.49465,1882.4,1882.3,0.0079658]
[1742129642252,1.06256,1882.2,1882.1,4.27037]
[1742129642453,1.06256,1882.2,1882.1,3.2078]
[1742129642953,2.49476,1882.2,1882.1,3.2078]
[1742129643244,1.06269,1882.0,1881.9,4.27048]
[1742129643637,4.64,1882.1,1881.8,0.0079658]
[1742129643842,3.15963,1881.9,1881.8,0.0079658]
[1742129644241,2.0969,1881.9,1881.8,1.0707558]
[1742129644544,3.15963,1881.9,1881.8,0.0079658]
[1742129644743,3.15963,1881.9,1881.8,1.0707558]
[1742129644744,2.0969,1881.9,1881.8,1.0707558]
[1742129644940,3.15963,1881.9,1881.8,1.3758658]
[1742129645645,3.15963,1881.9,1881.8,0.0079658]
[1742129648047,1.0629,1881.6,1881.5,4.27076]
[1742129648251,1.0629,1881.6,1881.5,3.2078]
[1742129648457,1.06288,1881.7,1881.6,1.06288]
[1742129648643,2.46078,1881.7,1881.6,1.06288]
[1742129648844,1.0629,1881.6,1881.5,4.27071]
[1742129649151,3.8401,1881.6,1881.5,4.27076]
[1742129649350,3.8401,1881.6,1881.5,3.2078]
[1742129649749,2.7772,1881.6,1881.2,3.2078]
[1742129650048,1.3979,1881.5,1881.2,1.0631]
[1742129650244,4.05531,1881.5,1881.1,2.53744]
[1742129650445,1.06312,1881.2,1881.1,0.01959]
[1742129651354,2.47792,1881.2,1881.1,0.01959]
[1742129652751,2.47792,1881.2,1880.7,8.66264394]
[1742129652752,1.06335,1880.8,1880.7,8.66264394]
[1742129653253,1.06333,1880.9,1880.8,1.06335]
[1742129653551,1.06335,1880.8,1880.7,1.4557]
[1742129653851,3.22765,1880.8,1880.7,1.4557]
[1742129654257,1.06341,1880.7,1880.6,3.2078]
[1742129654548,1.06352,1880.5,1880.4,4.6635]
[1742129654752,1.06352,1880.5,1880.4,1.4557]
[1742129655253,1.06363,1880.3,1880.2,3.2078]
[1742129655551,1.06366,1880.3,1880.1,2.51942]
[1742129655755,2.1431,1880.4,1880.0,3.2078]
[1742129655756,1.4361,1880.2,1880.0,3.2078]
[1742129655946,1.4361,1880.2,1879.9,0.02355]
[1742129655947,2.1525,1880.2,1879.9,0.02355]
[1742129656146,3.21623,1880.2,1879.9,0.02355]
[1742129656449,1.4361,1880.2,1880.1,3.2078]
[1742129656641,1.06368,1880.3,1880.1,3.2078]
[1742129656840,1.3802,1880.3,1880.2,1.06369]
[1742129657046,5.65155,1880.5,1880.2,1.06369]
[1742129657245,4.588,1880.5,1880.2,1.06368]
[1742129657450,1.3802,1880.5,1880.3,3.2078]
[1742129657652,1.06359,1880.4,1880.3,3.2078]
[1742129657949,0.0079658,1880.6,1880.3,3.2078]
[1742129658154,1.0714658,1880.6,1880.4,1.3635]
[1742129658354,1.0714658,1880.6,1880.4,2.42706]
[1742129658554,0.0079658,1880.6,1880.5,1.06352]
[1742129658749,0.0079658,1880.6,1880.4,1.3635]
[1742129658957,1.06358,1880.4,1880.3,3.2078]
[1742129659550,2.44498,1880.4,1880.3,3.2078]
[1742129659751,1.3814,1880.4,1880.0,4.5713]
[1742129659955,1.06375,1880.1,1880.0,3.2078]
[1742129660250,1.06375,1880.1,1879.9,0.02355]
[1742129660251,1.06378,1880.1,1879.9,1.08737]
[1742129660556,1.3814,1880.3,1879.9,0.02355]
[1742129660948,1.06371,1880.2,1880.0,1.06376]
[1742129661149,2.44515,1880.1,1879.9,1.08737]
[1742129661354,1.3814,1880.0,1879.9,1.08737]
[1742129661552,2.44506,1880.3,1880.1,1.06374]
[1742129661751,1.3814,1880.3,1880.2,1.06369]
[1742129661950,2.44503,1880.3,1880.2,1.06369]
[1742129662459,2.44505,1880.3,1880.2,1.06369]
[1742129662656,2.44505,1880.3,1880.1,2.47799]
[1742129662957,1.3864,1880.2,1880.1,2.47799]
[1742129663160,1.3864,1880.2,1880.0,3.2078]
[1742129663355,1.06375,1880.1,1880.0,3.2078]
[1742129663948,2.45013,1880.2,1880.1,1.06375]
[1742129664151,1.06375,1880.1,1880.0,3.2078]
[1742129664458,2.45015,1880.1,1880.0,3.2078]
[1742129664647,1.3864,1880.1,1880.0,4.2716]
[1742129664848,0.7211,1880.3,1880.2,1.06369]
[1742129665048,1.7379,1880.4,1880.0,5.86729]
[1742129665255,2.1075,1880.5,1880.4,1.06358]
[1742129665858,2.44992,1880.5,1880.4,1.06358]
[1742129666250,1.3864,1880.5,1880.4,1.06358]
[1742129666454,2.44992,1880.5,1880.4,1.06358]
[1742129666755,1.3864,1880.5,1880.4,1.06358]
[1742129666945,0.0079658,1880.6,1880.5,1.06352]
[1742129669553,0.0079658,1880.6,1880.5,4.27132]
[1742129670162,3.2078,1880.9,1880.8,1.06335]
[1742129670548,1.3348,1881.0,1880.9,1.06329]
[1742129670963,2.39804,1881.0,1880.9,1.06329]
[1742129671656,1.3348,1881.0,1880.9,1.06329]